[Event "Early-Titled-Tuesday-Blitz-October-24-2023"]
[Site "Chess.com"]
[Date "2023.10.24"]
[Round "8"]
[White "GeorgiosSouleidis"]
[Black "mbachez"]
[Result "1/2-1/2"]
[WhiteElo "2608"]
[BlackElo "2495"]
[TimeControl "180+1"]
[EndTime "9:26:20 PDT"]
[Termination "Game drawn - insufficient material"]

1. e4 {[%clk 0:03:00.9]} 1... c6 {[%clk 0:02:56.3]} 2. Nc3 {[%clk 0:03:00]} 2...
d5 {[%clk 0:02:55.9]} 3. Nf3 {[%clk 0:03:00.6]} 3... Bg4 {[%clk 0:02:55.2]} 4.
h3 {[%clk 0:03:00.4]} 4... Bxf3 {[%clk 0:02:55.4]} 5. Qxf3 {[%clk 0:03:01.3]}
5... e6 {[%clk 0:02:55.9]} 6. d4 {[%clk 0:03:01.5]} 6... dxe4 {[%clk 0:02:55.7]}
7. Qxe4 {[%clk 0:03:02.4]} 7... Nf6 {[%clk 0:02:55.2]} 8. Qd3 {[%clk 0:03:03.1]}
8... Be7 {[%clk 0:02:45]} 9. Bd2 {[%clk 0:03:00.6]} 9... O-O {[%clk 0:02:44.9]}
10. O-O-O {[%clk 0:03:00.7]} 10... c5 {[%clk 0:02:44.7]} 11. Be3 {[%clk
0:02:39.5]} 11... cxd4 {[%clk 0:02:38.6]} 12. Qxd4 {[%clk 0:02:40.4]} 12... Qa5
{[%clk 0:02:25.3]} 13. Qa4 {[%clk 0:02:32.3]} 13... Qxa4 {[%clk 0:02:08.4]} 14.
Nxa4 {[%clk 0:02:33.2]} 14... Nc6 {[%clk 0:01:59.7]} 15. g3 {[%clk 0:02:22.8]}
15... Nd5 {[%clk 0:01:57.2]} 16. Bc5 {[%clk 0:02:21.2]} 16... Bxc5 {[%clk
0:01:49.4]} 17. Nxc5 {[%clk 0:02:19.6]} 17... Rfc8 {[%clk 0:01:37.5]} 18. a3
{[%clk 0:01:32.6]} 18... Na5 {[%clk 0:01:24.6]} 19. Nd3 {[%clk 0:01:13.4]} 19...
Rc7 {[%clk 0:01:24]} 20. Kb1 {[%clk 0:00:38.2]} 20... Rac8 {[%clk 0:01:22.8]}
21. Ne1 {[%clk 0:00:31.7]} 21... Nf6 {[%clk 0:01:18.9]} 22. Bg2 {[%clk
0:00:30.9]} 22... Kf8 {[%clk 0:01:13]} 23. c3 {[%clk 0:00:30.3]} 23... Nc4
{[%clk 0:01:12.1]} 24. Nc2 {[%clk 0:00:27.2]} 24... b5 {[%clk 0:01:08.6]} 25.
Rd3 {[%clk 0:00:23.8]} 25... Nd7 {[%clk 0:01:03.7]} 26. Rhd1 {[%clk 0:00:21.9]}
26... Nc5 {[%clk 0:01:03.2]} 27. Rd8+ {[%clk 0:00:21.9]} 27... Ke7 {[%clk
0:00:58]} 28. Rxc8 {[%clk 0:00:21.6]} 28... Rxc8 {[%clk 0:00:57.8]} 29. Nd4
{[%clk 0:00:21.5]} 29... a6 {[%clk 0:00:27.1]} 30. Ka2 {[%clk 0:00:21.5]} 30...
Na4 {[%clk 0:00:23]} 31. Rd2 {[%clk 0:00:17.7]} 31... Ncxb2 {[%clk 0:00:19.1]}
32. Rxb2 {[%clk 0:00:17.1]} 32... Rxc3 {[%clk 0:00:16.8]} 33. Rd2 {[%clk
0:00:15.1]} 33... f5 {[%clk 0:00:15]} 34. Nc6+ {[%clk 0:00:13.4]} 34... Kf6
{[%clk 0:00:15.3]} 35. Nb4 {[%clk 0:00:09.7]} 35... a5 {[%clk 0:00:14.4]} 36.
Nc2 {[%clk 0:00:08.7]} 36... Rc5 {[%clk 0:00:13]} 37. Ne3 {[%clk 0:00:08.4]}
37... Nc3+ {[%clk 0:00:12.7]} 38. Kb2 {[%clk 0:00:09]} 38... b4 {[%clk
0:00:13.1]} 39. axb4 {[%clk 0:00:09.1]} 39... axb4 {[%clk 0:00:13.6]} 40. Nc2
{[%clk 0:00:08.9]} 40... Rb5 {[%clk 0:00:09.8]} 41. Kb3 {[%clk 0:00:08.6]} 41...
g5 {[%clk 0:00:02.4]} 42. h4 {[%clk 0:00:08.3]} 42... gxh4 {[%clk 0:00:02]} 43.
gxh4 {[%clk 0:00:09.2]} 43... Ne4 {[%clk 0:00:02]} 44. Bxe4 {[%clk 0:00:09.2]}
44... fxe4 {[%clk 0:00:02.5]} 45. Rd4 {[%clk 0:00:09.7]} 45... Rf5 {[%clk
0:00:01.9]} 46. Rxe4 {[%clk 0:00:08.5]} 46... Rxf2 {[%clk 0:00:02.2]} 47. Nxb4
{[%clk 0:00:08.8]} 47... Rh2 {[%clk 0:00:02.1]} 48. Nc6 {[%clk 0:00:07.8]} 48...
e5 {[%clk 0:00:01.3]} 49. Kc4 {[%clk 0:00:05.7]} 49... Kf5 {[%clk 0:00:01.5]}
50. Rxe5+ {[%clk 0:00:05.7]} 50... Kg4 {[%clk 0:00:02]} 51. Re4+ {[%clk
0:00:05.1]} 51... Kh5 {[%clk 0:00:02.4]} 52. Ne5 {[%clk 0:00:04.7]} 52... Rxh4
{[%clk 0:00:02.5]} 53. Kd5 {[%clk 0:00:03.3]} 53... Rxe4 {[%clk 0:00:01.3]} 54.
Kxe4 {[%clk 0:00:04.2]} 54... Kg5 {[%clk 0:00:01.7]} 55. Kf3 {[%clk 0:00:03.8]}
55... h5 {[%clk 0:00:02.4]} 56. Kg3 {[%clk 0:00:04]} 56... h4+ {[%clk 0:00:03]}
57. Kh3 {[%clk 0:00:04.3]} 57... Kf5 {[%clk 0:00:03.7]} 58. Nf3 {[%clk
0:00:04.5]} 58... Kf4 {[%clk 0:00:04.2]} 59. Nxh4 {[%clk 0:00:04.6]} 1/2-1/2

[Event "Early-Titled-Tuesday-Blitz-October-24-2023"]
[Site "Chess.com"]
[Date "2023.10.24"]
[Round "8"]
[White "UK_23"]
[Black "DTChess"]
[Result "0-1"]
[WhiteElo "2401"]
[BlackElo "2663"]
[TimeControl "180+1"]
[EndTime "9:26:21 PDT"]
[Termination "DTChess won by resignation"]

1. e4 {[%clk 0:03:00.9]} 1... e5 {[%clk 0:02:59.3]} 2. Nf3 {[%clk 0:03:00]} 2...
Nc6 {[%clk 0:02:59.3]} 3. Bc4 {[%clk 0:03:00.6]} 3... Nf6 {[%clk 0:02:58.2]} 4.
d3 {[%clk 0:03:00.8]} 4... Bc5 {[%clk 0:02:58]} 5. O-O {[%clk 0:03:01.3]} 5...
d6 {[%clk 0:02:58.2]} 6. c3 {[%clk 0:03:02]} 6... Bb6 {[%clk 0:02:58.5]} 7. Bb3
{[%clk 0:03:02.3]} 7... h6 {[%clk 0:02:58.5]} 8. Nbd2 {[%clk 0:03:01.9]} 8...
Be6 {[%clk 0:02:58.3]} 9. Nc4 {[%clk 0:03:01.1]} 9... O-O {[%clk 0:02:55.1]} 10.
h3 {[%clk 0:02:58.9]} 10... Qd7 {[%clk 0:02:55.1]} 11. Nxb6 {[%clk 0:02:57.4]}
11... axb6 {[%clk 0:02:55.1]} 12. Bxe6 {[%clk 0:02:57]} 12... fxe6 {[%clk
0:02:55.1]} 13. Re1 {[%clk 0:02:48.5]} 13... Qf7 {[%clk 0:02:52.1]} 14. d4
{[%clk 0:02:40.9]} 14... exd4 {[%clk 0:02:46.2]} 15. cxd4 {[%clk 0:02:40.6]}
15... d5 {[%clk 0:02:44.8]} 16. e5 {[%clk 0:02:33.5]} 16... Ne4 {[%clk
0:02:44.5]} 17. Be3 {[%clk 0:02:34.2]} 17... Ne7 {[%clk 0:02:39.4]} 18. Rc1
{[%clk 0:02:32.3]} 18... c6 {[%clk 0:02:30.1]} 19. a4 {[%clk 0:02:30.4]} 19...
Nf5 {[%clk 0:02:27.7]} 20. Qb3 {[%clk 0:02:27]} 20... Ra6 {[%clk 0:02:13.8]} 21.
Ra1 {[%clk 0:02:21.6]} 21... Qg6 {[%clk 0:02:09.2]} 22. Re2 {[%clk 0:02:07.3]}
22... Rf7 {[%clk 0:01:43.2]} 23. Qb4 {[%clk 0:01:52.7]} 23... Nxe3 {[%clk
0:01:11]} 24. Rxe3 {[%clk 0:01:46.9]} 24... c5 {[%clk 0:01:07.4]} 25. Qb5 {[%clk
0:01:29.2]} 25... Rf8 {[%clk 0:00:55.9]} 26. a5 {[%clk 0:01:20.7]} 26... cxd4
{[%clk 0:00:52.9]} 27. Rb3 {[%clk 0:01:20.4]} 27... bxa5 {[%clk 0:00:42.4]} 28.
Rxa5 {[%clk 0:01:11.6]} 28... Rxa5 {[%clk 0:00:42.1]} 29. Qxa5 {[%clk
0:01:12.5]} 29... Kh7 {[%clk 0:00:29.9]} 30. Qb6 {[%clk 0:01:12.5]} 30... Ng5
{[%clk 0:00:25]} 31. Nxg5+ {[%clk 0:01:05.7]} 31... Qxg5 {[%clk 0:00:25]} 32.
Qxd4 {[%clk 0:01:00.4]} 32... Rf7 {[%clk 0:00:24.7]} 33. Rc3 {[%clk 0:00:44.4]}
33... Qg6 {[%clk 0:00:21]} 34. b3 {[%clk 0:00:38.6]} 34... Rf5 {[%clk
0:00:19.6]} 35. Re3 {[%clk 0:00:28.9]} 35... Rg5 {[%clk 0:00:19.8]} 36. g3
{[%clk 0:00:27.9]} 36... Rf5 {[%clk 0:00:20.2]} 37. Kg2 {[%clk 0:00:26.6]} 37...
Rf7 {[%clk 0:00:20.3]} 38. b4 {[%clk 0:00:25.1]} 38... Rc7 {[%clk 0:00:20.2]}
39. Rc3 {[%clk 0:00:21.8]} 39... Rf7 {[%clk 0:00:19.3]} 40. b5 {[%clk
0:00:19.6]} 40... Qf5 {[%clk 0:00:19.4]} 41. Qe3 {[%clk 0:00:17.3]} 41... h5
{[%clk 0:00:19.1]} 42. h4 {[%clk 0:00:17.2]} 42... Qg4 {[%clk 0:00:18.1]} 43.
Rd3 {[%clk 0:00:17.4]} 43... Qg6 {[%clk 0:00:15.4]} 44. Rd4 {[%clk 0:00:17.7]}
44... Rf5 {[%clk 0:00:15.3]} 45. Rf4 {[%clk 0:00:17.8]} 45... Qf7 {[%clk
0:00:13.3]} 46. Rxf5 {[%clk 0:00:18]} 46... Qxf5 {[%clk 0:00:14.2]} 47. f4
{[%clk 0:00:18.3]} 47... Qc2+ {[%clk 0:00:13.9]} 48. Qf2 {[%clk 0:00:18.2]}
48... Qe4+ {[%clk 0:00:13.8]} 49. Qf3 {[%clk 0:00:18]} 49... Qf5 {[%clk
0:00:14.3]} 50. Kf2 {[%clk 0:00:18.1]} 50... Qc2+ {[%clk 0:00:14.3]} 51. Kg1
{[%clk 0:00:18.1]} 51... g6 {[%clk 0:00:14]} 52. f5 {[%clk 0:00:14]} 52... Qxf5
{[%clk 0:00:12.2]} 53. Qe3 {[%clk 0:00:14.7]} 53... Qb1+ {[%clk 0:00:11.5]} 54.
Kg2 {[%clk 0:00:14.8]} 54... Qxb5 {[%clk 0:00:11.8]} 55. Qg5 {[%clk 0:00:14.8]}
55... Qd7 {[%clk 0:00:11.4]} 56. g4 {[%clk 0:00:13.2]} 56... hxg4 {[%clk
0:00:11.3]} 57. h5 {[%clk 0:00:13.7]} 57... Qf7 {[%clk 0:00:10.7]} 58. hxg6+
{[%clk 0:00:12.9]} 58... Qxg6 {[%clk 0:00:11.1]} 59. Qe7+ {[%clk 0:00:13.6]}
59... Kg8 {[%clk 0:00:09.6]} 60. Qd8+ {[%clk 0:00:13.2]} 60... Kg7 {[%clk
0:00:09.4]} 61. Qe7+ {[%clk 0:00:13.6]} 61... Qf7 {[%clk 0:00:10]} 62. Qg5+
{[%clk 0:00:13.9]} 62... Kh7 {[%clk 0:00:10.4]} 63. Qh4+ {[%clk 0:00:13.9]}
63... Kg6 {[%clk 0:00:10.6]} 64. Qxg4+ {[%clk 0:00:14.4]} 64... Kh6 {[%clk
0:00:09.8]} 65. Qh4+ {[%clk 0:00:14.7]} 65... Qh5 {[%clk 0:00:10]} 66. Qd8
{[%clk 0:00:14.1]} 66... Qg5+ {[%clk 0:00:09.1]} 67. Kf2 {[%clk 0:00:13.4]}
67... Qxd8 {[%clk 0:00:09.1]} 0-1

[Event "Early-Titled-Tuesday-Blitz-October-24-2023"]
[Site "Chess.com"]
[Date "2023.10.24"]
[Round "8"]
[White "Flaccidmoves"]
[Black "Krakozia"]
[Result "0-1"]
[WhiteElo "2435"]
[BlackElo "2937"]
[TimeControl "180+1"]
[EndTime "9:26:25 PDT"]
[Termination "Krakozia won by resignation"]

1. c4 {[%clk 0:03:00.9]} 1... e6 {[%clk 0:02:57.3]} 2. d4 {[%clk 0:03:00.3]}
2... Nf6 {[%clk 0:02:56.8]} 3. Nf3 {[%clk 0:02:59.5]} 3... d5 {[%clk 0:02:55.9]}
4. Nc3 {[%clk 0:02:58.8]} 4... c6 {[%clk 0:02:55.2]} 5. e3 {[%clk 0:02:57.2]}
5... Nbd7 {[%clk 0:02:55.2]} 6. Bd3 {[%clk 0:02:56.2]} 6... dxc4 {[%clk
0:02:54.7]} 7. Bxc4 {[%clk 0:02:56.3]} 7... b5 {[%clk 0:02:55.3]} 8. Bb3 {[%clk
0:02:54.3]} 8... Be7 {[%clk 0:02:53.8]} 9. O-O {[%clk 0:02:48.8]} 9... b4 {[%clk
0:02:51.8]} 10. Na4 {[%clk 0:02:42.8]} 10... O-O {[%clk 0:02:43.3]} 11. Bd2
{[%clk 0:02:37.9]} 11... Ba6 {[%clk 0:02:38.5]} 12. Re1 {[%clk 0:02:37.4]} 12...
c5 {[%clk 0:02:35.1]} 13. dxc5 {[%clk 0:02:29.8]} 13... Nxc5 {[%clk 0:02:36]}
14. Nxc5 {[%clk 0:02:09.8]} 14... Bxc5 {[%clk 0:02:36.9]} 15. Rc1 {[%clk
0:02:02.9]} 15... Rc8 {[%clk 0:02:34.7]} 16. Rxc5 {[%clk 0:01:55.3]} 16... Rxc5
{[%clk 0:02:34.5]} 17. Bxb4 {[%clk 0:01:55.5]} 17... Ne4 {[%clk 0:02:23.5]} 18.
Bxc5 {[%clk 0:01:50.3]} 18... Nxc5 {[%clk 0:02:24.4]} 19. Qxd8 {[%clk
0:01:35.9]} 19... Rxd8 {[%clk 0:02:23.4]} 20. Bc2 {[%clk 0:01:35.8]} 20... Bb7
{[%clk 0:02:17.9]} 21. Rd1 {[%clk 0:01:31.6]} 21... Rc8 {[%clk 0:02:16]} 22. Bb1
{[%clk 0:01:28.9]} 22... Na4 {[%clk 0:02:13.6]} 23. b3 {[%clk 0:01:12.9]} 23...
Nc3 {[%clk 0:02:08.6]} 24. Re1 {[%clk 0:01:13.3]} 24... Nxb1 {[%clk 0:01:43.3]}
25. Rxb1 {[%clk 0:01:14.2]} 25... Rc2 {[%clk 0:01:42.1]} 26. a4 {[%clk
0:01:10.9]} 26... h6 {[%clk 0:01:37.8]} 27. Nd4 {[%clk 0:01:09.9]} 27... Ra2
{[%clk 0:01:33.8]} 28. f3 {[%clk 0:01:02.6]} 28... e5 {[%clk 0:01:19.9]} 29. Nb5
{[%clk 0:00:59.3]} 29... a6 {[%clk 0:01:19.5]} 30. Nd6 {[%clk 0:00:59.7]} 30...
Bd5 {[%clk 0:01:17.8]} 31. e4 {[%clk 0:00:43.9]} 31... Be6 {[%clk 0:01:18.2]}
32. b4 {[%clk 0:00:31.7]} 32... Rxa4 {[%clk 0:01:15.1]} 33. b5 {[%clk
0:00:32.3]} 33... axb5 {[%clk 0:01:11.4]} 34. Rxb5 {[%clk 0:00:33.2]} 34... f6
{[%clk 0:01:04.5]} 35. Rb7 {[%clk 0:00:31.9]} 35... Ra8 {[%clk 0:01:01.1]} 36.
g4 {[%clk 0:00:28]} 36... Rd8 {[%clk 0:00:58.6]} 37. Nf5 {[%clk 0:00:27.1]}
37... Bxf5 {[%clk 0:00:53.4]} 38. gxf5 {[%clk 0:00:28]} 38... Rd2 {[%clk
0:00:52]} 39. Rc7 {[%clk 0:00:27.8]} 39... h5 {[%clk 0:00:50.6]} 40. h4 {[%clk
0:00:24.6]} 40... Kh7 {[%clk 0:00:46.2]} 41. Rb7 {[%clk 0:00:24.1]} 41... Kh6
{[%clk 0:00:43]} 42. Rf7 {[%clk 0:00:22.5]} 42... Ra2 {[%clk 0:00:41]} 43. Rf8
{[%clk 0:00:21.5]} 43... Kh7 {[%clk 0:00:38.8]} 44. Rf7 {[%clk 0:00:21.8]} 44...
Ra1+ {[%clk 0:00:29.8]} 45. Kg2 {[%clk 0:00:21.4]} 45... Rb1 {[%clk 0:00:30.4]}
46. Re7 {[%clk 0:00:19.9]} 46... Rb2+ {[%clk 0:00:30.2]} 47. Kg3 {[%clk
0:00:19.8]} 47... Rb8 {[%clk 0:00:29.6]} 48. Rf7 {[%clk 0:00:19.8]} 48... Kh6
{[%clk 0:00:28.7]} 49. Re7 {[%clk 0:00:19.7]} 49... g6 {[%clk 0:00:25.9]} 50.
fxg6 {[%clk 0:00:19.8]} 50... Kxg6 {[%clk 0:00:25.4]} 51. Rd7 {[%clk 0:00:19.9]}
51... Rb3 {[%clk 0:00:23.7]} 52. Rc7 {[%clk 0:00:19.6]} 52... Rb1 {[%clk
0:00:23.6]} 53. Rd7 {[%clk 0:00:19.6]} 53... Rg1+ {[%clk 0:00:22.7]} 54. Kf2
{[%clk 0:00:20]} 54... Rh1 {[%clk 0:00:21.6]} 55. Kg3 {[%clk 0:00:20.6]} 55...
Rc1 {[%clk 0:00:21.3]} 56. Rb7 {[%clk 0:00:20.2]} 56... Rc6 {[%clk 0:00:20.2]}
57. Ra7 {[%clk 0:00:20.4]} 57... f5 {[%clk 0:00:19]} 58. Re7 {[%clk 0:00:18.5]}
58... f4+ {[%clk 0:00:18.2]} 59. Kh3 {[%clk 0:00:17.5]} 59... Kf6 {[%clk
0:00:16.9]} 60. Rh7 {[%clk 0:00:17.5]} 60... Rc3 {[%clk 0:00:16.2]} 61. Kg2
{[%clk 0:00:14.2]} 61... Rc2+ {[%clk 0:00:16.3]} 62. Kh3 {[%clk 0:00:14.4]}
62... Rf2 {[%clk 0:00:15.2]} 63. Rxh5 {[%clk 0:00:14.1]} 63... Rxf3+ {[%clk
0:00:14.5]} 64. Kg2 {[%clk 0:00:14.3]} 64... Re3 {[%clk 0:00:13.5]} 65. Rh6+
{[%clk 0:00:14.2]} 65... Kg7 {[%clk 0:00:12.4]} 66. Re6 {[%clk 0:00:14.2]} 66...
Rxe4 {[%clk 0:00:13]} 67. Kf3 {[%clk 0:00:14.6]} 67... Re3+ {[%clk 0:00:12.9]}
68. Kg4 {[%clk 0:00:15]} 68... f3 {[%clk 0:00:11.8]} 69. Kg3 {[%clk 0:00:12.5]}
69... e4 {[%clk 0:00:12]} 70. h5 {[%clk 0:00:12.2]} 70... Re2 {[%clk 0:00:11.9]}
0-1

[Event "Early-Titled-Tuesday-Blitz-October-24-2023"]
[Site "Chess.com"]
[Date "2023.10.24"]
[Round "8"]
[White "balachess2006"]
[Black "adotand"]
[Result "1/2-1/2"]
[WhiteElo "2580"]
[BlackElo "2822"]
[TimeControl "180+1"]
[EndTime "9:26:30 PDT"]
[Termination "Game drawn - insufficient material"]

1. Nf3 {[%clk 0:03:00.9]} 1... b6 {[%clk 0:02:59.5]} 2. c4 {[%clk 0:03:00.4]}
2... Bb7 {[%clk 0:03:00]} 3. e3 {[%clk 0:03:01.1]} 3... e6 {[%clk 0:03:00.5]} 4.
Nc3 {[%clk 0:03:01.4]} 4... f5 {[%clk 0:03:01.1]} 5. b3 {[%clk 0:02:58.3]} 5...
Nf6 {[%clk 0:03:01.6]} 6. Bb2 {[%clk 0:02:58.8]} 6... Be7 {[%clk 0:03:02.4]} 7.
d4 {[%clk 0:02:58.2]} 7... O-O {[%clk 0:03:03]} 8. d5 {[%clk 0:02:56.1]} 8...
Na6 {[%clk 0:02:59.9]} 9. Be2 {[%clk 0:02:55]} 9... Nc5 {[%clk 0:02:59.8]} 10.
O-O {[%clk 0:02:54.7]} 10... a5 {[%clk 0:02:58.1]} 11. Nd4 {[%clk 0:02:47.4]}
11... Qe8 {[%clk 0:02:42.1]} 12. Bf3 {[%clk 0:02:42.6]} 12... Bd6 {[%clk
0:02:26.7]} 13. dxe6 {[%clk 0:02:40.5]} 13... Bxf3 {[%clk 0:02:26.4]} 14. Qxf3
{[%clk 0:02:36.8]} 14... dxe6 {[%clk 0:02:22.2]} 15. Ndb5 {[%clk 0:02:32.4]}
15... Nd3 {[%clk 0:02:12.6]} 16. Nxd6 {[%clk 0:02:27.7]} 16... cxd6 {[%clk
0:02:12.3]} 17. Ba3 {[%clk 0:02:28.2]} 17... Rd8 {[%clk 0:02:00.6]} 18. Rad1
{[%clk 0:02:26.5]} 18... Nc5 {[%clk 0:02:01]} 19. h3 {[%clk 0:02:08.2]} 19...
Rf7 {[%clk 0:01:48.8]} 20. Qe2 {[%clk 0:01:28.8]} 20... Rfd7 {[%clk 0:01:45.5]}
21. Rd4 {[%clk 0:01:24.3]} 21... e5 {[%clk 0:01:32.5]} 22. Rdd1 {[%clk
0:01:23.4]} 22... e4 {[%clk 0:01:33.1]} 23. Bxc5 {[%clk 0:01:14.6]} 23... dxc5
{[%clk 0:01:29.2]} 24. Rxd7 {[%clk 0:01:14.4]} 24... Rxd7 {[%clk 0:01:29.5]} 25.
Rd1 {[%clk 0:01:14.8]} 25... h6 {[%clk 0:01:27.9]} 26. Na4 {[%clk 0:01:05]}
26... Qe6 {[%clk 0:01:22.2]} 27. Rxd7 {[%clk 0:01:02.6]} 27... Nxd7 {[%clk
0:01:23.1]} 28. Qd2 {[%clk 0:00:59.2]} 28... Kf7 {[%clk 0:01:21.2]} 29. f4
{[%clk 0:00:59.1]} 29... exf3 {[%clk 0:01:20.7]} 30. gxf3 {[%clk 0:00:59.1]}
30... Ne5 {[%clk 0:01:21.4]} 31. Qg2 {[%clk 0:00:50.7]} 31... Qd6 {[%clk
0:01:16.8]} 32. f4 {[%clk 0:00:35.7]} 32... Nd7 {[%clk 0:01:12.6]} 33. Nc3
{[%clk 0:00:34.2]} 33... Nf6 {[%clk 0:01:08.1]} 34. Qb7+ {[%clk 0:00:33.3]}
34... Kg6 {[%clk 0:01:07.9]} 35. Qg2+ {[%clk 0:00:33.3]} 35... Kh7 {[%clk
0:01:07.9]} 36. Nd5 {[%clk 0:00:32]} 36... Ne4 {[%clk 0:01:08]} 37. h4 {[%clk
0:00:29]} 37... h5 {[%clk 0:01:03]} 38. Qf3 {[%clk 0:00:22.6]} 38... Qg6+ {[%clk
0:01:02.6]} 39. Kh2 {[%clk 0:00:22]} 39... Kh6 {[%clk 0:00:54.5]} 40. Qg2 {[%clk
0:00:20.5]} 40... Qd6 {[%clk 0:00:53.5]} 41. Qh3 {[%clk 0:00:17.7]} 41... Qe6
{[%clk 0:00:51.9]} 42. Qg2 {[%clk 0:00:17.6]} 42... g6 {[%clk 0:00:47.7]} 43.
Qb2 {[%clk 0:00:17.5]} 43... Kh7 {[%clk 0:00:46.6]} 44. a4 {[%clk 0:00:15.3]}
44... Qd6 {[%clk 0:00:44]} 45. Qe5 {[%clk 0:00:14.6]} 45... Qxe5 {[%clk
0:00:36.2]} 46. fxe5 {[%clk 0:00:15.5]} 46... Kg7 {[%clk 0:00:36.5]} 47. Nxb6
{[%clk 0:00:15.9]} 47... Kf7 {[%clk 0:00:32.9]} 48. Nd5 {[%clk 0:00:16.1]} 48...
Nd2 {[%clk 0:00:30.5]} 49. Nf4 {[%clk 0:00:13]} 49... Nxb3 {[%clk 0:00:29.5]}
50. e6+ {[%clk 0:00:13.6]} 50... Kf6 {[%clk 0:00:29.9]} 51. e7 {[%clk
0:00:13.8]} 51... Kxe7 {[%clk 0:00:30.4]} 52. Nxg6+ {[%clk 0:00:14.5]} 52... Kd6
{[%clk 0:00:30.2]} 53. Nf4 {[%clk 0:00:13]} 53... Nd2 {[%clk 0:00:30.8]} 54.
Nxh5 {[%clk 0:00:12.7]} 54... Nxc4 {[%clk 0:00:31.5]} 55. Kg3 {[%clk 0:00:12.6]}
55... Nb2 {[%clk 0:00:28.3]} 56. Nf4 {[%clk 0:00:11.9]} 56... Nxa4 {[%clk
0:00:28.9]} 57. h5 {[%clk 0:00:11.3]} 57... Ke7 {[%clk 0:00:29.6]} 58. Nd5+
{[%clk 0:00:11.2]} 58... Kf7 {[%clk 0:00:29.5]} 59. Kf4 {[%clk 0:00:11.6]} 59...
Nb2 {[%clk 0:00:29.7]} 60. Kxf5 {[%clk 0:00:08.8]} 60... a4 {[%clk 0:00:30.3]}
61. Nc3 {[%clk 0:00:09.1]} 61... a3 {[%clk 0:00:30.1]} 62. Ke4 {[%clk
0:00:09.7]} 62... Nd1 {[%clk 0:00:30.1]} 63. Na2 {[%clk 0:00:09.4]} 63... c4
{[%clk 0:00:28.9]} 64. Kd4 {[%clk 0:00:09.4]} 64... c3 {[%clk 0:00:29.3]} 65.
Kd3 {[%clk 0:00:08.7]} 65... Kf6 {[%clk 0:00:27.3]} 66. Nxc3 {[%clk 0:00:08.1]}
66... Nf2+ {[%clk 0:00:24.5]} 67. Ke2 {[%clk 0:00:07.7]} 67... Ng4 {[%clk
0:00:22.6]} 68. Kd3 {[%clk 0:00:07.2]} 68... Kg5 {[%clk 0:00:21.4]} 69. Kc2
{[%clk 0:00:07]} 69... Nxe3+ {[%clk 0:00:21.6]} 70. Kb3 {[%clk 0:00:07.3]} 70...
Kxh5 {[%clk 0:00:22.2]} 71. Kxa3 {[%clk 0:00:07.7]} 1/2-1/2